[Event "Late-Titled-Tuesday-Blitz-September-26-2023"]
[Site "Chess.com"]
[Date "2023.09.26"]
[Round "1"]
[White "snowlord"]
[Black "venturov"]
[Result "1-0"]
[WhiteElo "2896"]
[BlackElo "2464"]
[TimeControl "180+1"]
[EndTime "14:05:52 PDT"]
[Termination "snowlord won by resignation"]

1. e4 {[%clk 0:03:00.9]} 1... c5 {[%clk 0:02:59.2]} 2. Nf3 {[%clk 0:03:00.8]}
2... e6 {[%clk 0:02:56.3]} 3. Qe2 {[%clk 0:02:58.6]} 3... Nc6 {[%clk 0:02:55.9]}
4. g3 {[%clk 0:02:58.7]} 4... Nf6 {[%clk 0:02:54.3]} 5. Bg2 {[%clk 0:02:59.2]}
5... d5 {[%clk 0:02:54.2]} 6. exd5 {[%clk 0:02:58.9]} 6... Nxd5 {[%clk
0:02:54.4]} 7. O-O {[%clk 0:02:59.6]} 7... Be7 {[%clk 0:02:54.2]} 8. Rd1 {[%clk
0:03:00.3]} 8... Qb6 {[%clk 0:02:54.4]} 9. Nc3 {[%clk 0:02:49]} 9... O-O {[%clk
0:02:43.6]} 10. b3 {[%clk 0:02:40.3]} 10... Nxc3 {[%clk 0:02:25.8]} 11. dxc3
{[%clk 0:02:41.2]} 11... Bf6 {[%clk 0:02:25.7]} 12. Ng5 {[%clk 0:02:33.9]} 12...
h6 {[%clk 0:01:53.1]} 13. Ne4 {[%clk 0:02:33.5]} 13... Be7 {[%clk 0:01:53.7]}
14. Nd6 {[%clk 0:02:16.5]} 14... Bxd6 {[%clk 0:01:34.1]} 15. Rxd6 {[%clk
0:02:16.3]} 15... Nd4 {[%clk 0:01:34.6]} 16. Qe5 {[%clk 0:02:13.1]} 16... f6
{[%clk 0:01:00.5]} 17. Rxb6 {[%clk 0:01:55.8]} 17... fxe5 {[%clk 0:00:59.9]} 18.
Rd6 {[%clk 0:01:53.4]} 18... Ne2+ {[%clk 0:00:58.8]} 19. Kf1 {[%clk 0:01:52.6]}
19... Nxc3 {[%clk 0:00:58.8]} 20. a4 {[%clk 0:01:39.9]} 20... Nd5 {[%clk
0:00:52.3]} 21. Ke1 {[%clk 0:01:33.5]} 21... Nb4 {[%clk 0:00:40.8]} 22. Rd2
{[%clk 0:01:32.8]} 22... Nc6 {[%clk 0:00:24.1]} 23. Ba3 {[%clk 0:01:24.1]} 23...
Nd4 {[%clk 0:00:19.5]} 24. Bxc5 {[%clk 0:01:23.7]} 24... Re8 {[%clk 0:00:20]}
25. Rad1 {[%clk 0:01:18.7]} 25... Bd7 {[%clk 0:00:18.5]} 26. Bxb7 {[%clk
0:01:16.8]} 26... Rab8 {[%clk 0:00:16.9]} 27. Bg2 {[%clk 0:01:17]} 27... Bc6
{[%clk 0:00:17.3]} 28. Bxc6 {[%clk 0:01:13.7]} 28... Nxc6 {[%clk 0:00:18.2]} 29.
Rd7 {[%clk 0:01:11.2]} 29... a6 {[%clk 0:00:18.1]} 30. Rc7 {[%clk 0:01:11.2]}
30... Rbc8 {[%clk 0:00:18.5]} 31. Rdd7 {[%clk 0:01:10.7]} 31... h5 {[%clk
0:00:18.7]} 32. Rxg7+ {[%clk 0:01:10.4]} 32... Kh8 {[%clk 0:00:18.7]} 33. Rh7+
{[%clk 0:01:11.3]} 1-0

[Event "Late-Titled-Tuesday-Blitz-September-26-2023"]
[Site "Chess.com"]
[Date "2023.09.26"]
[Round "1"]
[White "YEIKO2017"]
[Black "GadimbayliA"]
[Result "0-1"]
[WhiteElo "2453"]
[BlackElo "2858"]
[TimeControl "180+1"]
[EndTime "14:05:55 PDT"]
[Termination "GadimbayliA won by resignation"]

1. e4 {[%clk 0:02:58.9]} 1... e5 {[%clk 0:02:57.5]} 2. Nf3 {[%clk 0:02:55.6]}
2... d5 {[%clk 0:02:57.6]} 3. exd5 {[%clk 0:02:53.3]} 3... e4 {[%clk 0:02:58.5]}
4. Ne5 {[%clk 0:02:53.5]} 4... Qxd5 {[%clk 0:02:58]} 5. d4 {[%clk 0:02:54]} 5...
exd3 {[%clk 0:02:58.9]} 6. Nxd3 {[%clk 0:02:53.4]} 6... Nf6 {[%clk 0:02:59.6]}
7. Nc3 {[%clk 0:02:53.6]} 7... Qf5 {[%clk 0:02:58.8]} 8. Nf4 {[%clk 0:02:53]}
8... Bd6 {[%clk 0:02:57.1]} 9. Bd3 {[%clk 0:02:52.9]} 9... Qa5 {[%clk
0:02:53.8]} 10. Qe2+ {[%clk 0:02:45.3]} 10... Qe5 {[%clk 0:02:50]} 11. Qxe5+
{[%clk 0:02:38.4]} 11... Bxe5 {[%clk 0:02:50.9]} 12. O-O {[%clk 0:02:28.6]}
12... O-O {[%clk 0:02:51.1]} 13. Re1 {[%clk 0:02:28.8]} 13... Nc6 {[%clk
0:02:46.8]} 14. Nfd5 {[%clk 0:02:18.8]} 14... Nxd5 {[%clk 0:02:45.6]} 15. Nxd5
{[%clk 0:02:19.7]} 15... Be6 {[%clk 0:02:46.3]} 16. Ne7+ {[%clk 0:02:17.2]}
16... Nxe7 {[%clk 0:02:46.3]} 17. Rxe5 {[%clk 0:02:17.2]} 17... Nc6 {[%clk
0:02:43.2]} 18. Re1 {[%clk 0:02:16.3]} 18... Nb4 {[%clk 0:02:38.7]} 19. Be4
{[%clk 0:02:11.8]} 19... c6 {[%clk 0:02:32.6]} 20. c3 {[%clk 0:02:00.2]} 20...
Na6 {[%clk 0:02:30.1]} 21. Be3 {[%clk 0:01:57.3]} 21... Rfe8 {[%clk 0:02:28.7]}
22. Bc2 {[%clk 0:01:49.7]} 22... Nc7 {[%clk 0:02:28.1]} 23. a4 {[%clk
0:01:41.9]} 23... Nd5 {[%clk 0:02:26.8]} 24. Bd4 {[%clk 0:01:41.2]} 24... b6
{[%clk 0:02:22.6]} 25. a5 {[%clk 0:01:38.7]} 25... c5 {[%clk 0:02:23]} 26. Be5
{[%clk 0:01:38.6]} 26... f6 {[%clk 0:02:22.1]} 27. Bg3 {[%clk 0:01:34.8]} 27...
Kf7 {[%clk 0:02:22.1]} 28. h4 {[%clk 0:01:25.9]} 28... b5 {[%clk 0:02:18.1]} 29.
a6 {[%clk 0:01:22]} 29... h5 {[%clk 0:02:12.6]} 30. Rad1 {[%clk 0:01:18.4]}
30... Rad8 {[%clk 0:02:09.3]} 31. f3 {[%clk 0:00:58.9]} 31... Rd7 {[%clk
0:02:05.6]} 32. c4 {[%clk 0:00:54.6]} 32... Nb4 {[%clk 0:02:02.5]} 33. Bb1
{[%clk 0:00:47.1]} 33... Rxd1 {[%clk 0:01:58.2]} 34. Rxd1 {[%clk 0:00:46.3]}
34... bxc4 {[%clk 0:01:56]} 35. Kf2 {[%clk 0:00:41.5]} 35... Nxa6 {[%clk
0:01:54]} 36. Rd6 {[%clk 0:00:37.9]} 36... Nb4 {[%clk 0:01:53.3]} 37. Be4 {[%clk
0:00:32.3]} 37... Re7 {[%clk 0:01:39]} 38. Rd8 {[%clk 0:00:30.8]} 38... Rd7
{[%clk 0:01:39.2]} 39. Ra8 {[%clk 0:00:29.8]} 39... Bd5 {[%clk 0:01:34.7]} 40.
Bf5 {[%clk 0:00:27]} 40... Nd3+ {[%clk 0:01:26.5]} 41. Ke3 {[%clk 0:00:25.7]}
41... Re7+ {[%clk 0:01:26.9]} 42. Kd2 {[%clk 0:00:25.7]} 42... Bxa8 {[%clk
0:01:27.8]} 0-1

[Event "Late-Titled-Tuesday-Blitz-September-26-2023"]
[Site "Chess.com"]
[Date "2023.09.26"]
[Round "1"]
[White "MKlose11"]
[Black "invisible_s0ul"]
[Result "1-0"]
[WhiteElo "2606"]
[BlackElo "2296"]
[TimeControl "180+1"]
[EndTime "14:05:56 PDT"]
[Termination "MKlose11 won by resignation"]

1. e4 {[%clk 0:02:03.9]} 1... c5 {[%clk 0:02:59.3]} 2. Nc3 {[%clk 0:02:03.5]}
2... Nc6 {[%clk 0:02:57.1]} 3. d3 {[%clk 0:02:04.4]} 3... g6 {[%clk 0:02:56.6]}
4. g3 {[%clk 0:02:05.3]} 4... Bg7 {[%clk 0:02:57.1]} 5. Be3 {[%clk 0:01:57.5]}
5... Nd4 {[%clk 0:02:49]} 6. Qd2 {[%clk 0:01:49.4]} 6... e6 {[%clk 0:02:43.9]}
7. Nd1 {[%clk 0:01:42.9]} 7... d6 {[%clk 0:02:20.4]} 8. c3 {[%clk 0:01:42.2]}
8... Nc6 {[%clk 0:02:21]} 9. Bg2 {[%clk 0:01:43.1]} 9... Nge7 {[%clk 0:02:20.6]}
10. Bh6 {[%clk 0:01:42.3]} 10... O-O {[%clk 0:02:19.6]} 11. h4 {[%clk
0:01:42.5]} 11... Ne5 {[%clk 0:01:53.8]} 12. Bxg7 {[%clk 0:01:38.7]} 12... Kxg7
{[%clk 0:01:52.3]} 13. h5 {[%clk 0:01:39.6]} 13... Rh8 {[%clk 0:01:42.4]} 14.
Ne3 {[%clk 0:01:28.4]} 14... d5 {[%clk 0:01:35.4]} 15. f4 {[%clk 0:01:25.8]}
15... d4 {[%clk 0:01:17.7]} 16. fxe5 {[%clk 0:01:23]} 16... dxe3 {[%clk
0:01:17.5]} 17. Qxe3 {[%clk 0:01:23.9]} 17... Nc6 {[%clk 0:01:17.1]} 18. Nf3
{[%clk 0:01:23.4]} 18... h6 {[%clk 0:01:06.3]} 19. hxg6 {[%clk 0:01:19.1]} 19...
fxg6 {[%clk 0:01:07.2]} 20. O-O-O {[%clk 0:01:17.9]} 20... Qe7 {[%clk
0:00:57.2]} 21. d4 {[%clk 0:01:17.1]} 21... cxd4 {[%clk 0:00:50]} 22. cxd4
{[%clk 0:01:18]} 22... Nb4 {[%clk 0:00:34.1]} 23. Kb1 {[%clk 0:01:11.7]} 23...
Bd7 {[%clk 0:00:30.2]} 24. a3 {[%clk 0:01:11.7]} 24... Na6 {[%clk 0:00:26.8]}
25. d5 {[%clk 0:01:11.7]} 25... Ba4 {[%clk 0:00:20.7]} 26. Rc1 {[%clk
0:01:10.7]} 26... Rac8 {[%clk 0:00:20]} 27. Nd4 {[%clk 0:01:10]} 27... Nc5
{[%clk 0:00:12.9]} 28. Rxc5 {[%clk 0:01:08.9]} 28... Rxc5 {[%clk 0:00:12.5]} 29.
Nxe6+ {[%clk 0:01:09.2]} 29... Kf7 {[%clk 0:00:13.1]} 30. Rf1+ {[%clk
0:01:08.2]} 1-0

[Event "Late-Titled-Tuesday-Blitz-September-26-2023"]
[Site "Chess.com"]
[Date "2023.09.26"]
[Round "1"]
[White "TheMagician"]
[Black "stolencandy13"]
[Result "1-0"]
[WhiteElo "2246"]
[BlackElo "2552"]
[TimeControl "180+1"]
[EndTime "14:05:56 PDT"]
[Termination "TheMagician won by resignation"]

1. a3 {[%clk 0:02:59.2]} 1... e5 {[%clk 0:02:58.8]} 2. c4 {[%clk 0:02:56.6]}
2... Nf6 {[%clk 0:02:58.5]} 3. Nc3 {[%clk 0:02:56.1]} 3... Nc6 {[%clk
0:02:57.8]} 4. b4 {[%clk 0:02:55.8]} 4... d5 {[%clk 0:02:55.1]} 5. cxd5 {[%clk
0:02:55.5]} 5... Nxd5 {[%clk 0:02:55.8]} 6. Bb2 {[%clk 0:02:55.6]} 6... a6
{[%clk 0:02:52.4]} 7. e3 {[%clk 0:02:55.5]} 7... Be6 {[%clk 0:02:51.9]} 8. Rc1
{[%clk 0:02:53.7]} 8... Be7 {[%clk 0:02:51.4]} 9. Ne4 {[%clk 0:02:51.4]} 9...
O-O {[%clk 0:02:50.3]} 10. Nf3 {[%clk 0:02:51.3]} 10... Nf6 {[%clk 0:02:20.6]}
11. Nc5 {[%clk 0:02:48.1]} 11... Bxc5 {[%clk 0:02:14]} 12. Rxc5 {[%clk
0:02:47.9]} 12... e4 {[%clk 0:02:13.9]} 13. Ng5 {[%clk 0:02:33.1]} 13... Bg4
{[%clk 0:02:07.9]} 14. Bxf6 {[%clk 0:02:28.6]} 14... gxf6 {[%clk 0:01:40.3]} 15.
Qxg4 {[%clk 0:02:27.7]} 15... fxg5 {[%clk 0:01:40.6]} 16. Qxg5+ {[%clk
0:02:27.3]} 16... Qxg5 {[%clk 0:01:39]} 17. Rxg5+ {[%clk 0:02:27.4]} 17... Kh8
{[%clk 0:01:39.6]} 18. Bc4 {[%clk 0:02:15]} 18... f6 {[%clk 0:01:30.7]} 19. Rc5
{[%clk 0:02:14.8]} 19... Ne5 {[%clk 0:01:23.2]} 20. Be2 {[%clk 0:02:11]} 20...
c6 {[%clk 0:01:19]} 21. f4 {[%clk 0:02:10.2]} 21... exf3 {[%clk 0:01:18.1]} 22.
gxf3 {[%clk 0:02:09.5]} 22... Rg8 {[%clk 0:01:13.6]} 23. Kf2 {[%clk 0:02:08.5]}
23... Rad8 {[%clk 0:01:12.3]} 24. d4 {[%clk 0:02:08.3]} 24... Nd7 {[%clk
0:01:06.5]} 25. Rf5 {[%clk 0:02:07.4]} 25... Rg5 {[%clk 0:01:02.3]} 26. Rxg5
{[%clk 0:02:05.7]} 26... fxg5 {[%clk 0:01:03.2]} 27. h4 {[%clk 0:02:06.2]} 27...
gxh4 {[%clk 0:00:56.5]} 28. Rxh4 {[%clk 0:02:06.1]} 28... Re8 {[%clk 0:00:51.3]}
29. Bd3 {[%clk 0:02:00.7]} 29... Nf6 {[%clk 0:00:48.2]} 30. e4 {[%clk
0:01:58.2]} 30... Re7 {[%clk 0:00:44.1]} 31. Bc4 {[%clk 0:01:48.9]} 31... Kg7
{[%clk 0:00:40.6]} 32. e5 {[%clk 0:01:47.5]} 32... Nd7 {[%clk 0:00:39]} 33. f4
{[%clk 0:01:44.9]} 33... Nb6 {[%clk 0:00:35.8]} 34. Bb3 {[%clk 0:01:39.8]} 34...
Rd7 {[%clk 0:00:31.6]} 35. f5 {[%clk 0:01:36]} 35... h5 {[%clk 0:00:28.8]} 36.
Ke3 {[%clk 0:01:32.6]} 36... Kh6 {[%clk 0:00:27.4]} 37. e6 {[%clk 0:01:28.3]}
37... Rd6 {[%clk 0:00:22.9]} 38. e7 {[%clk 0:01:18.7]} 38... Rd8 {[%clk
0:00:22.4]} 39. exd8=Q {[%clk 0:01:18.1]} 1-0

[Event "Late-Titled-Tuesday-Blitz-September-26-2023"]
[Site "Chess.com"]
[Date "2023.09.26"]
[Round "1"]
[White "Real_taiatai"]
[Black "stregachess"]
[Result "1-0"]
[WhiteElo "2528"]
[BlackElo "2074"]
[TimeControl "180+1"]
[EndTime "14:06:03 PDT"]
[Termination "Real_taiatai won by resignation"]

1. d4 {[%clk 0:02:54.5]} 1... Nf6 {[%clk 0:02:59.2]} 2. c4 {[%clk 0:02:51.8]}
2... e5 {[%clk 0:02:58.6]} 3. dxe5 {[%clk 0:02:51.7]} 3... Ne4 {[%clk
0:02:58.9]} 4. Nf3 {[%clk 0:02:51.3]} 4... Bb4+ {[%clk 0:02:58]} 5. Nbd2 {[%clk
0:02:50.9]} 5... Nc6 {[%clk 0:02:56.4]} 6. a3 {[%clk 0:02:49.3]} 6... Bxd2+
{[%clk 0:02:54.1]} 7. Bxd2 {[%clk 0:02:48.8]} 7... Nxd2 {[%clk 0:02:53.5]} 8.
Qxd2 {[%clk 0:02:47.3]} 8... O-O {[%clk 0:02:53.7]} 9. e3 {[%clk 0:02:47.2]}
9... Re8 {[%clk 0:02:54]} 10. Qc3 {[%clk 0:02:46.4]} 10... Qe7 {[%clk 0:02:54]}
11. Rd1 {[%clk 0:02:34.9]} 11... Nxe5 {[%clk 0:02:53.6]} 12. Be2 {[%clk
0:02:35.3]} 12... d6 {[%clk 0:02:50.9]} 13. O-O {[%clk 0:02:35]} 13... Rb8
{[%clk 0:02:37.2]} 14. b4 {[%clk 0:02:28.6]} 14... Bg4 {[%clk 0:02:21.8]} 15.
Nd4 {[%clk 0:02:10.8]} 15... Bxe2 {[%clk 0:02:16.7]} 16. Nxe2 {[%clk 0:02:11.7]}
16... Qf6 {[%clk 0:02:16.2]} 17. Rd4 {[%clk 0:01:59.8]} 17... Qg6 {[%clk
0:02:10.5]} 18. Kh1 {[%clk 0:01:45.6]} 18... Qh6 {[%clk 0:01:56.4]} 19. Ng3
{[%clk 0:01:33.8]} 19... Re6 {[%clk 0:01:36]} 20. c5 {[%clk 0:01:25.7]} 20...
Rg6 {[%clk 0:01:30]} 21. cxd6 {[%clk 0:01:23]} 21... cxd6 {[%clk 0:01:20.7]} 22.
Qc7 {[%clk 0:01:19.1]} 22... Rf8 {[%clk 0:01:19.6]} 23. Nf5 {[%clk 0:01:13.5]}
23... Qg5 {[%clk 0:01:08.1]} 24. Ne7+ {[%clk 0:01:12.9]} 24... Kh8 {[%clk
0:01:08.1]} 25. Nxg6+ {[%clk 0:01:13.3]} 25... Nxg6 {[%clk 0:00:46.4]} 26. Qxd6
{[%clk 0:01:11.8]} 26... h6 {[%clk 0:00:37.8]} 27. f4 {[%clk 0:01:00.2]} 27...
Qh4 {[%clk 0:00:29]} 28. f5 {[%clk 0:00:57.6]} 28... Qe7 {[%clk 0:00:17.8]} 29.
fxg6 {[%clk 0:00:56.3]} 1-0

[Event "Late-Titled-Tuesday-Blitz-September-26-2023"]
[Site "Chess.com"]
[Date "2023.09.26"]
[Round "1"]
[White "FrankDux44"]
[Black "kai_nov"]
[Result "1-0"]
[WhiteElo "2572"]
[BlackElo "2241"]
[TimeControl "180+1"]
[EndTime "14:06:04 PDT"]
[Termination "FrankDux44 won on time"]

1. d4 {[%clk 0:03:00.9]} 1... Nf6 {[%clk 0:02:53.6]} 2. c4 {[%clk 0:02:59.9]}
2... e6 {[%clk 0:02:53.2]} 3. Nc3 {[%clk 0:02:59.4]} 3... d5 {[%clk 0:02:53.2]}
4. cxd5 {[%clk 0:02:58.9]} 4... exd5 {[%clk 0:02:52.9]} 5. Bg5 {[%clk
0:02:58.4]} 5... c6 {[%clk 0:02:49.5]} 6. e3 {[%clk 0:02:58]} 6... h6 {[%clk
0:02:49.1]} 7. Bh4 {[%clk 0:02:54.9]} 7... Bf5 {[%clk 0:02:46.4]} 8. Bd3 {[%clk
0:02:41.9]} 8... Bxd3 {[%clk 0:02:45.3]} 9. Qxd3 {[%clk 0:02:42.8]} 9... Be7
{[%clk 0:02:42.8]} 10. Nge2 {[%clk 0:02:36.1]} 10... Nbd7 {[%clk 0:02:42.2]} 11.
O-O {[%clk 0:02:34]} 11... O-O {[%clk 0:02:42.3]} 12. Rad1 {[%clk 0:02:29.1]}
12... Re8 {[%clk 0:02:41.9]} 13. f3 {[%clk 0:02:25.7]} 13... Nf8 {[%clk
0:02:25.4]} 14. Bf2 {[%clk 0:02:16.5]} 14... Ne6 {[%clk 0:01:57.2]} 15. h3
{[%clk 0:02:12.8]} 15... Qc7 {[%clk 0:01:48.5]} 16. e4 {[%clk 0:02:11]} 16...
dxe4 {[%clk 0:01:45.3]} 17. fxe4 {[%clk 0:02:11.9]} 17... Rad8 {[%clk 0:01:45]}
18. e5 {[%clk 0:02:10.3]} 18... Nd5 {[%clk 0:01:40.5]} 19. Ne4 {[%clk
0:02:02.2]} 19... Qb6 {[%clk 0:01:10.5]} 20. b3 {[%clk 0:01:55]} 20... Qa5
{[%clk 0:00:35.7]} 21. a4 {[%clk 0:01:45.9]} 21... c5 {[%clk 0:00:26.1]} 22. Qf3
{[%clk 0:01:40.9]} 22... cxd4 {[%clk 0:00:22.5]} 23. Nxd4 {[%clk 0:01:41.1]}
23... Nxd4 {[%clk 0:00:20.7]} 24. Bxd4 {[%clk 0:01:41.9]} 24... Rf8 {[%clk
0:00:20.9]} 25. Qg3 {[%clk 0:01:36.8]} 25... Nb4 {[%clk 0:00:08.9]} 26. Be3
{[%clk 0:01:23.4]} 26... Kh8 {[%clk 0:00:04.9]} 27. Rxd8 {[%clk 0:01:21.4]}
27... Qxd8 {[%clk 0:00:04.2]} 28. Nd6 {[%clk 0:01:16.6]} 28... Nd5 {[%clk
0:00:02.4]} 29. Nxf7+ {[%clk 0:01:09.4]} 29... Rxf7 {[%clk 0:00:01.5]} 30. Rxf7
{[%clk 0:01:10.3]} 1-0

[Event "Late-Titled-Tuesday-Blitz-September-26-2023"]
[Site "Chess.com"]
[Date "2023.09.26"]
[Round "1"]
[White "miraitrunks"]
[Black "zajka-molotok"]
[Result "0-1"]
[WhiteElo "2146"]
[BlackElo "2558"]
[TimeControl "180+1"]
[EndTime "14:06:07 PDT"]
[Termination "zajka-molotok won by checkmate"]

1. e4 {[%clk 0:02:58.8]} 1... c5 {[%clk 0:02:59]} 2. c3 {[%clk 0:02:59.1]} 2...
e6 {[%clk 0:02:55.5]} 3. d4 {[%clk 0:02:58.7]} 3... d5 {[%clk 0:02:20]} 4. e5
{[%clk 0:02:55.7]} 4... Nc6 {[%clk 0:02:16.1]} 5. Nf3 {[%clk 0:02:55.3]} 5...
Qb6 {[%clk 0:02:15.3]} 6. Bd3 {[%clk 0:02:54.9]} 6... Bd7 {[%clk 0:02:13.1]} 7.
O-O {[%clk 0:02:54.2]} 7... cxd4 {[%clk 0:02:12.8]} 8. cxd4 {[%clk 0:02:54.9]}
8... Nxd4 {[%clk 0:02:12.1]} 9. Nxd4 {[%clk 0:02:54.8]} 9... Qxd4 {[%clk
0:02:13]} 10. Qe2 {[%clk 0:02:55]} 10... Qb6 {[%clk 0:02:03.2]} 11. Nc3 {[%clk
0:02:54.5]} 11... Ne7 {[%clk 0:02:02.6]} 12. Kh1 {[%clk 0:02:51.4]} 12... Nc6
{[%clk 0:02:01.4]} 13. f4 {[%clk 0:02:50.2]} 13... g6 {[%clk 0:02:01]} 14. g4
{[%clk 0:02:37.4]} 14... h5 {[%clk 0:01:59.1]} 15. f5 {[%clk 0:02:36.6]} 15...
gxf5 {[%clk 0:01:55.7]} 16. gxf5 {[%clk 0:02:36.4]} 16... O-O-O {[%clk 0:01:46]}
17. fxe6 {[%clk 0:02:34.2]} 17... fxe6 {[%clk 0:01:39.2]} 18. Bg5 {[%clk
0:02:33.7]} 18... Be7 {[%clk 0:01:37.1]} 19. Bxe7 {[%clk 0:02:26]} 19... Nxe7
{[%clk 0:01:38]} 20. Rac1 {[%clk 0:02:24.7]} 20... Bc6 {[%clk 0:01:35.1]} 21.
Rf7 {[%clk 0:02:21.7]} 21... Rde8 {[%clk 0:01:21.6]} 22. Nb5 {[%clk 0:02:17.5]}
22... Kb8 {[%clk 0:01:13.1]} 23. Nd6 {[%clk 0:02:17.3]} 23... Rhf8 {[%clk
0:00:59.1]} 24. Qxh5 {[%clk 0:02:07]} 24... Qe3 {[%clk 0:00:50.6]} 25. Rxf8
{[%clk 0:01:19.2]} 25... Rxf8 {[%clk 0:00:46.8]} 26. Rf1 {[%clk 0:00:28.3]}
26... d4+ {[%clk 0:00:45.2]} 27. Be4 {[%clk 0:00:25.2]} 27... Rxf1+ {[%clk
0:00:43.5]} 28. Kg2 {[%clk 0:00:25.5]} 28... Rf2+ {[%clk 0:00:42]} 29. Kg1
{[%clk 0:00:22.3]} 29... Qe1# {[%clk 0:00:42.9]} 0-1

[Event "Late-Titled-Tuesday-Blitz-September-26-2023"]
[Site "Chess.com"]
[Date "2023.09.26"]
[Round "1"]
[White "lamomiajunior"]
[Black "Kostukov_Alex"]
[Result "1-0"]
[WhiteElo "2729"]
[BlackElo "2407"]
[TimeControl "180+1"]
[EndTime "14:06:09 PDT"]
[Termination "lamomiajunior won by resignation"]

1. d4 {[%clk 0:03:00.9]} 1... g6 {[%clk 0:02:57.4]} 2. e4 {[%clk 0:03:00.8]}
2... c5 {[%clk 0:02:53.3]} 3. d5 {[%clk 0:02:59.6]} 3... d6 {[%clk 0:02:52.9]}
4. Nc3 {[%clk 0:03:00]} 4... Bg7 {[%clk 0:02:53.5]} 5. Nf3 {[%clk 0:03:00.7]}
5... Nf6 {[%clk 0:02:54]} 6. Bc4 {[%clk 0:03:01.2]} 6... O-O {[%clk 0:02:53.9]}
7. O-O {[%clk 0:03:01.9]} 7... Na6 {[%clk 0:02:46.9]} 8. h3 {[%clk 0:02:57.4]}
8... Nc7 {[%clk 0:02:46.1]} 9. Re1 {[%clk 0:02:57.8]} 9... Nd7 {[%clk
0:02:44.1]} 10. a4 {[%clk 0:02:57.3]} 10... Rb8 {[%clk 0:02:33.4]} 11. Bf1
{[%clk 0:02:56.8]} 11... b6 {[%clk 0:02:31.3]} 12. Bf4 {[%clk 0:02:54.9]} 12...
a6 {[%clk 0:02:27.7]} 13. Qd2 {[%clk 0:02:51.2]} 13... b5 {[%clk 0:02:24.4]} 14.
axb5 {[%clk 0:02:51.5]} 14... axb5 {[%clk 0:02:25.2]} 15. Bh6 {[%clk 0:02:50.5]}
15... b4 {[%clk 0:02:16.1]} 16. Bxg7 {[%clk 0:02:50.6]} 16... Kxg7 {[%clk
0:02:15.7]} 17. Ne2 {[%clk 0:02:51]} 17... Ne5 {[%clk 0:02:04.7]} 18. Nxe5
{[%clk 0:02:48.1]} 18... dxe5 {[%clk 0:02:05.6]} 19. Nc1 {[%clk 0:02:40]} 19...
Nb5 {[%clk 0:01:55.5]} 20. Bxb5 {[%clk 0:02:24.9]} 20... Rxb5 {[%clk 0:01:53.1]}
21. Nd3 {[%clk 0:02:24.5]} 21... Qd6 {[%clk 0:01:46.1]} 22. b3 {[%clk
0:02:24.9]} 22... Bb7 {[%clk 0:01:41.2]} 23. Nb2 {[%clk 0:02:25]} 23... Ra8
{[%clk 0:01:36.2]} 24. Nc4 {[%clk 0:02:24.7]} 24... Qc7 {[%clk 0:01:36.1]} 25.
Rxa8 {[%clk 0:02:23.4]} 25... Bxa8 {[%clk 0:01:36.2]} 26. h4 {[%clk 0:02:21.6]}
26... h5 {[%clk 0:01:33.6]} 27. Qg5 {[%clk 0:01:44.4]} 27... f6 {[%clk
0:01:30.2]} 28. Qe3 {[%clk 0:01:44.2]} 28... Rb8 {[%clk 0:01:20.4]} 29. Rf1
{[%clk 0:01:42.1]} 29... Bb7 {[%clk 0:01:15.8]} 30. f4 {[%clk 0:01:42.4]} 30...
exf4 {[%clk 0:01:12.6]} 31. Rxf4 {[%clk 0:01:43.3]} 31... Ba6 {[%clk 0:01:10.9]}
32. e5 {[%clk 0:01:36]} 32... Bxc4 {[%clk 0:01:08.3]} 33. exf6+ {[%clk
0:01:36.5]} 33... exf6 {[%clk 0:01:06.2]} 34. bxc4 {[%clk 0:01:37.2]} 34... Qe5
{[%clk 0:01:02.7]} 35. Re4 {[%clk 0:01:37.7]} 35... Qd6 {[%clk 0:00:38.6]} 36.
Re6 {[%clk 0:01:34.7]} 36... Qf8 {[%clk 0:00:30.3]} 37. Re7+ {[%clk 0:01:32]}
37... Kg8 {[%clk 0:00:30.5]} 38. Qe6+ {[%clk 0:01:31.8]} 38... Kh8 {[%clk
0:00:29.3]} 39. Rf7 {[%clk 0:01:28.8]} 39... Qd8 {[%clk 0:00:25.2]} 40. Rxf6
{[%clk 0:01:21]} 40... Qg8 {[%clk 0:00:18.7]} 41. Qe5 {[%clk 0:01:18]} 41... Qg7
{[%clk 0:00:17.5]} 42. Qxb8+ {[%clk 0:01:17.9]} 1-0

[Event "Late-Titled-Tuesday-Blitz-September-26-2023"]
[Site "Chess.com"]
[Date "2023.09.26"]
[Round "1"]
[White "DefiantChair"]
[Black "Dewarfd"]
[Result "0-1"]
[WhiteElo "2547"]
[BlackElo "2224"]
[TimeControl "180+1"]
[EndTime "14:06:09 PDT"]
[Termination "Dewarfd won by resignation"]

1. e4 {[%clk 0:02:40.4]} 1... e5 {[%clk 0:02:58.1]} 2. Nf3 {[%clk 0:02:37.9]}
2... Nc6 {[%clk 0:02:57.3]} 3. Bb5 {[%clk 0:02:38.3]} 3... Nf6 {[%clk
0:02:55.9]} 4. d3 {[%clk 0:02:38.9]} 4... Ne7 {[%clk 0:02:54.2]} 5. O-O {[%clk
0:02:36.7]} 5... c6 {[%clk 0:02:54.1]} 6. Ba4 {[%clk 0:02:36.3]} 6... Ng6 {[%clk
0:02:53.5]} 7. d4 {[%clk 0:02:36.4]} 7... d6 {[%clk 0:02:47.8]} 8. d5 {[%clk
0:02:35.7]} 8... Qc7 {[%clk 0:02:41.2]} 9. c4 {[%clk 0:02:33.2]} 9... Be7 {[%clk
0:02:38.8]} 10. Nc3 {[%clk 0:02:32.6]} 10... O-O {[%clk 0:02:38.4]} 11. h3
{[%clk 0:02:32.6]} 11... cxd5 {[%clk 0:02:36.5]} 12. cxd5 {[%clk 0:02:27.5]}
12... a6 {[%clk 0:02:35.8]} 13. Bg5 {[%clk 0:02:26]} 13... h6 {[%clk 0:02:30.3]}
14. Bxf6 {[%clk 0:02:25.8]} 14... Bxf6 {[%clk 0:02:30]} 15. Rc1 {[%clk
0:02:26.5]} 15... Qa5 {[%clk 0:02:24.5]} 16. Bb3 {[%clk 0:02:25.6]} 16... Bd7
{[%clk 0:02:21.4]} 17. Re1 {[%clk 0:02:18.5]} 17... Rfc8 {[%clk 0:02:18]} 18.
Ne2 {[%clk 0:02:13.1]} 18... Bg5 {[%clk 0:02:07.7]} 19. Nxg5 {[%clk 0:01:59.3]}
19... hxg5 {[%clk 0:02:08.4]} 20. Rc3 {[%clk 0:01:52.7]} 20... Rxc3 {[%clk
0:01:58.5]} 21. Nxc3 {[%clk 0:01:52.3]} 21... Nf4 {[%clk 0:01:56]} 22. Qf3
{[%clk 0:01:44.9]} 22... Rc8 {[%clk 0:01:36.7]} 23. Rd1 {[%clk 0:01:42.8]} 23...
b5 {[%clk 0:01:30.3]} 24. Kh2 {[%clk 0:01:34.9]} 24... Qd8 {[%clk 0:01:27.4]}
25. a3 {[%clk 0:01:31.5]} 25... Qf6 {[%clk 0:01:27.1]} 26. Ne2 {[%clk
0:01:22.3]} 26... Qg6 {[%clk 0:01:24.9]} 27. Ng3 {[%clk 0:01:19.2]} 27... g4
{[%clk 0:01:19.6]} 28. Qe3 {[%clk 0:01:18.9]} 28... gxh3 {[%clk 0:01:18.5]} 29.
gxh3 {[%clk 0:01:18.6]} 29... Bxh3 {[%clk 0:01:12.3]} 30. Rc1 {[%clk 0:00:58]}
30... Qh6 {[%clk 0:01:05.8]} 31. Kg1 {[%clk 0:00:48]} 31... Rxc1+ {[%clk
0:01:01.6]} 32. Qxc1 {[%clk 0:00:48.9]} 32... Bg4 {[%clk 0:00:58.4]} 33. Kf1
{[%clk 0:00:34.4]} 33... Qh3+ {[%clk 0:00:49.4]} 34. Ke1 {[%clk 0:00:32.8]}
34... Nd3+ {[%clk 0:00:47.4]} 0-1